bitfinex-derivatives/quotes_BTCF0:USTF0_20251108
["timestamp","ask_amount","ask_price","bid_price","bid_amount"]
[1762605107798,0.05588,102110.0,102100.0,0.66621904]
[1762605110203,0.12627878,102110.0,102100.0,0.66621904]
[1762605111705,0.12627878,102110.0,102100.0,0.56822244]
[1762605112396,0.05803,102100.0,102090.0,0.46465824]
[1762605112596,0.05803,102100.0,102090.0,0.00014702]
[1762605112597,0.23221907,102100.0,102090.0,0.00014702]
[1762605112805,0.16174122,102100.0,102090.0,0.00014702]
[1762605113011,0.52254122,102100.0,102090.0,0.00014702]
[1762605113207,0.52254122,102100.0,102090.0,0.10385824]
[1762605113606,0.52254122,102100.0,102090.0,0.00214702]
[1762605113806,0.52254122,102100.0,102090.0,0.10585824]
[1762605114013,0.66374111,102100.0,102090.0,0.10585824]
[1762605114206,0.52254122,102100.0,102090.0,0.10585824]
[1762605114408,0.52254122,102100.0,102090.0,0.10385824]
[1762605114602,0.41883,102100.0,102090.0,0.10385824]
[1762605115003,0.41883,102100.0,102090.0,0.10485824]
[1762605115611,0.41883,102100.0,102090.0,0.10385824]
[1762605116311,0.48914568,102100.0,102090.0,0.10385824]
[1762605116510,0.41883,102100.0,102090.0,0.10385824]
[1762605116710,0.41883,102100.0,102090.0,0.20186444]
[1762605117011,0.12835021,102100.0,102090.0,0.20186444]
[1762605117806,0.05803,102100.0,102090.0,0.20186444]
[1762605119108,0.05803,102100.0,102090.0,0.56266444]
[1762605119417,0.05803,102100.0,102090.0,0.66637566]
[1762605119812,0.11075347,102100.0,102090.0,0.66637566]
[1762605120111,0.14590144,102100.0,102090.0,0.66637566]
[1762605120518,0.09317797,102100.0,102090.0,0.66637566]
[1762605120721,0.04776797,102100.0,102090.0,0.66637566]
[1762605121111,0.01262,102100.0,102090.0,0.66637566]
[1762605121415,0.14487144,102110.0,102100.0,0.0979965]
[1762605121610,0.14487144,102110.0,102100.0,0.66621894]
[1762605121810,0.14487144,102110.0,102100.0,0.3608]
[1762605122012,0.10972347,102110.0,102100.0,0.56822244]
[1762605123416,0.10972347,102110.0,102100.0,0.66621904]
[1762605138044,0.06550347,102110.0,102100.0,0.66621904]
[1762605138743,0.08713347,102110.0,102100.0,0.66621904]
[1762605139846,0.10972347,102110.0,102100.0,0.66621904]
[1762605143749,0.10972347,102110.0,102100.0,0.56822244]
[1762605143942,0.10972347,102110.0,102100.0,0.66621904]
[1762605144451,0.10972347,102110.0,102100.0,0.56822244]
[1762605145752,0.10972347,102110.0,102100.0,0.66621904]
[1762605146239,0.057,102110.0,102100.0,0.66621904]
[1762605146445,0.12732021,102110.0,102100.0,0.66621904]
[1762605154651,0.12732021,102110.0,102100.0,0.56822244]
[1762605155856,0.12732021,102110.0,102100.0,0.66621904]
[1762605157460,0.12732021,102110.0,102100.0,0.56822244]
[1762605158359,0.12732021,102110.0,102100.0,0.3608]
[1762605158861,0.05862,102100.0,102090.0,0.51054702]
[1762605159055,0.1115617,102100.0,102090.0,0.46465824]
[1762605159359,0.1292089,102100.0,102090.0,0.46465824]
[1762605160259,0.14542846,102100.0,102090.0,0.10385824]
[1762605160663,0.14542846,102100.0,102090.0,0.10585824]
[1762605160862,0.50622846,102100.0,102090.0,0.10585824]
[1762605161161,0.50756271,102100.0,102090.0,0.10585824]
[1762605161363,0.50756271,102100.0,102090.0,0.10385824]
[1762605161565,0.50756271,102100.0,102090.0,0.20186444]
[1762605162354,0.50756271,102100.0,102090.0,0.20189589]
[1762605163068,0.50756271,102100.0,102090.0,0.10388969]
[1762605163363,0.50756271,102100.0,102090.0,0.20189579]
[1762605167867,0.14676271,102100.0,102090.0,0.20189579]
[1762605168666,0.05862,102100.0,102090.0,0.20189579]
[1762605169267,0.12904268,102100.0,102090.0,0.56269579]
[1762605170062,0.05862,102100.0,102090.0,0.56269579]
[1762605170264,0.11143592,102100.0,102090.0,0.56269579]
[1762605171463,0.11143592,102100.0,102090.0,0.46468969]
[1762605171668,0.05862,102100.0,102090.0,0.10388969]
[1762605172470,0.05862,102100.0,102090.0,0.00014702]
[1762605172659,0.41942,102100.0,102090.0,0.00014702]
[1762605174573,0.48984268,102100.0,102090.0,0.10388969]
[1762605175172,0.12904268,102100.0,102090.0,0.10388969]
[1762605175472,0.05862,102100.0,102090.0,0.10388969]
[1762605175766,0.05862,102100.0,102090.0,0.20189579]
[1762605176572,0.41942,102100.0,102090.0,0.20189579]
[1762605179778,0.48984268,102100.0,102090.0,0.20189579]
[1762605180178,0.48984268,102100.0,102090.0,0.00014702]
[1762605180377,0.48984268,102100.0,102090.0,0.10388969]
[1762605180879,0.48984268,102100.0,102090.0,0.20189589]
[1762605181676,0.12904268,102100.0,102090.0,0.56269589]
[1762605184384,0.1114661,102100.0,102090.0,0.56269589]
[1762605186986,0.1114661,102100.0,102090.0,0.46468969]
[1762605187285,0.05862,102100.0,102090.0,0.56269579]
[1762605187487,0.05862,102100.0,102090.0,0.46468969]
[1762605187684,0.05862,102100.0,102090.0,0.56269589]
[1762605188187,0.12904268,102100.0,102090.0,0.56269589]
[1762605188980,0.12904268,102100.0,102090.0,0.46468969]
[1762605189181,0.48984268,102100.0,102090.0,0.10388969]
[1762605189682,0.48984268,102100.0,102090.0,0.00014702]
[1762605190083,0.61130538,102100.0,102090.0,0.00014702]
[1762605190282,0.50756271,102100.0,102090.0,0.00014702]
[1762605190483,0.50856271,102100.0,102090.0,0.00014702]
[1762605191079,0.50756271,102100.0,102090.0,0.00014702]
[1762605191284,0.50956271,102100.0,102090.0,0.00014702]
[1762605191480,0.54373069,102100.0,102090.0,0.00014702]
[1762605191885,0.54573069,102100.0,102090.0,0.00014702]
[1762605192378,0.54373069,102100.0,102090.0,0.00014702]
[1762605192575,0.54673069,102100.0,102090.0,0.00014702]
[1762605194292,0.63491324,102100.0,102090.0,0.00014702]
[1762605194590,0.51260255,102100.0,102090.0,0.00014702]
[1762605194789,0.51260255,102100.0,102090.0,0.09815322]
[1762605195090,0.51260255,102100.0,102090.0,0.00014702]
[1762605196089,0.51260255,102100.0,102090.0,0.20189589]
[1762605196295,0.13415531,102100.0,102090.0,0.56269589]
[1762605196593,0.13415071,102100.0,102090.0,0.56269589]
[1762605196890,0.13415071,102100.0,102090.0,0.20189589]
[1762605197497,0.49295071,102100.0,102090.0,0.10388969]
[1762605197692,0.49295071,102100.0,102090.0,0.00014702]
[1762605197693,0.51160255,102100.0,102090.0,0.00014702]
[1762605197882,0.51060255,102100.0,102090.0,0.00014702]
[1762605198486,0.50860255,102100.0,102090.0,0.00014702]
[1762605198790,0.50960255,102100.0,102090.0,0.09815322]
[1762605199191,0.51060255,102100.0,102090.0,0.09815322]
[1762605199492,0.50960255,102100.0,102090.0,0.09815322]
[1762605199788,0.14880255,102100.0,102090.0,0.09815322]
[1762605199990,0.06062,102100.0,102090.0,0.20189589]
[1762605200183,0.13214782,102100.0,102090.0,0.56269589]
[1762605202991,0.13214782,102100.0,102090.0,0.46468969]
[1762605203193,0.13214782,102100.0,102090.0,0.10388969]
[1762605203397,0.49294782,102100.0,102090.0,0.00014702]
[1762605207003,0.49294782,102100.0,102090.0,0.09815322]
[1762605207299,0.13214782,102100.0,102090.0,0.20189589]
[1762605207902,0.13214782,102100.0,102090.0,0.10388969]
[1762605208093,0.13214782,102100.0,102090.0,0.20189589]
[1762605210108,0.14980255,102100.0,102090.0,0.20189589]
[1762605210896,0.14980255,102100.0,102090.0,0.10388969]
[1762605211405,0.51060255,102100.0,102090.0,0.10388969]
[1762605213007,0.58112658,102100.0,102090.0,0.20189579]
[1762605213211,0.49294403,102100.0,102090.0,0.20189579]
[1762605214100,0.49294403,102100.0,102090.0,0.10388969]
[1762605215504,0.42242,102100.0,102090.0,0.00014702]
[1762605216603,0.51060255,102100.0,102090.0,0.00014702]
[1762605219814,0.51060255,102100.0,102090.0,0.10388969]
[1762605220006,0.51060255,102100.0,102090.0,0.20189589]
[1762605220207,0.42242,102100.0,102090.0,0.20189589]
[1762605221415,0.42242,102100.0,102090.0,0.09815322]
[1762605221614,0.42242,102100.0,102090.0,0.20189589]
[1762605221810,0.42242,102100.0,102090.0,0.09815322]
[1762605222010,0.42242,102100.0,102090.0,0.20189589]
[1762605222515,0.42242,102100.0,102090.0,0.09815322]
[1762605222712,0.49294777,102100.0,102090.0,0.2018977]
[1762605223721,0.42242,102100.0,102090.0,0.2018977]
[1762605225723,0.52616448,102100.0,102090.0,0.1038915]
[1762605226218,0.61434703,102100.0,102090.0,0.1038915]
[1762605227709,0.61434703,102100.0,102090.0,0.00014702]
[1762605228419,0.61434703,102100.0,102090.0,0.1038915]
[1762605230120,0.51060255,102100.0,102090.0,0.2018977]
[1762605231919,0.51060255,102100.0,102090.0,0.1038915]
[1762605232420,0.51060255,102100.0,102090.0,0.2018977]
[1762605232921,0.42242,102100.0,102090.0,0.2018977]
[1762605233126,0.51060255,102100.0,102090.0,0.2018977]
[1762605236225,0.49296423,102100.0,102090.0,0.2018977]
[1762605236420,0.42242,102100.0,102090.0,0.2018977]
[1762605236725,0.14980255,102100.0,102090.0,0.5626977]
[1762605236909,0.14980255,102100.0,102090.0,0.2018977]
[1762605237109,0.14980255,102100.0,102090.0,0.5626977]
[1762605237913,0.14980255,102100.0,102090.0,0.2018977]
[1762605238123,0.22034423,102100.0,102090.0,0.5626977]
[1762605238329,0.13216168,102100.0,102090.0,0.5626977]
[1762605239324,0.49296168,102100.0,102090.0,0.1038915]
[1762605240324,0.42242,102100.0,102090.0,0.1038915]
[1762605240931,0.51060255,102100.0,102090.0,0.1038915]
[1762605246827,0.51060255,102100.0,102090.0,0.2018977]
[1762605247328,0.42242,102100.0,102090.0,0.2018977]
[1762605252432,0.06162,102100.0,102090.0,0.2018977]
[1762605252632,0.42242,102100.0,102090.0,0.2018977]
[1762605253925,0.49294475,102100.0,102090.0,0.1038915]
[1762605256840,0.49294475,102100.0,102090.0,0.2018977]
[1762605257041,0.42242,102100.0,102090.0,0.2018977]
[1762605257440,0.51060255,102100.0,102090.0,0.2018977]
[1762605257944,0.42242,102100.0,102090.0,0.2018977]
[1762605260250,0.11451966,102100.0,102090.0,0.2018977]
[1762605261746,0.11451966,102100.0,102090.0,0.5626977]
[1762605263450,0.13214231,102100.0,102090.0,0.5626977]
[1762605266954,0.13214231,102100.0,102090.0,0.66644218]
[1762605266955,0.09231919,102100.0,102090.0,0.66644218]
[1762605267147,0.06972919,102100.0,102090.0,0.91132218]
[1762605267347,0.10499623,102100.0,102090.0,0.91132218]
[1762605268050,0.10399623,102100.0,102090.0,0.91132218]
[1762605268250,0.10399623,102100.0,102090.0,0.91332218]
[1762605268554,0.10199623,102100.0,102090.0,0.91432218]
[1762605269355,0.10199623,102100.0,102090.0,0.66944218]
[1762605269552,0.04906704,102100.0,102090.0,0.66944218]
[1762605269855,0.04906704,102100.0,102090.0,0.91432218]
[1762605271655,0.07118704,102100.0,102090.0,0.91432218]
[1762605271860,0.07118704,102100.0,102090.0,0.66944218]
[1762605272660,0.09339704,102100.0,102090.0,0.66944218]
[1762605273558,0.04906704,102100.0,102090.0,0.66944218]
[1762605273760,0.07118704,102100.0,102090.0,0.66944218]
[1762605274259,0.03592,102100.0,102090.0,0.66944218]
[1762605274561,0.05813,102100.0,102090.0,0.66944218]
[1762605276960,0.0138,102100.0,102090.0,0.66944218]
[1762605277358,0.15480914,102110.0,102090.0,0.91432218]
[1762605277562,0.15480914,102110.0,102100.0,0.66628596]
[1762605277563,0.19913914,102110.0,102100.0,0.66628596]
[1762605278760,0.20013914,102110.0,102100.0,0.66628596]
[1762605284466,0.20013914,102110.0,102100.0,0.56250782]
[1762605288260,0.31354736,102110.0,102100.0,0.56250782]
[1762605291870,0.25971445,102110.0,102100.0,0.56250782]
[1762605293276,0.22444741,102110.0,102100.0,0.56250782]
[1762605293970,0.2067597,102110.0,102100.0,0.56250782]
[1762605294473,0.2079797,102110.0,102100.0,0.80734782]
[1762605294671,0.2079797,102110.0,102100.0,0.56250782]
[1762605295568,0.2079797,102110.0,102100.0,0.56450782]
[1762605295973,0.2069797,102110.0,102100.0,0.56550782]
[1762605296473,0.2069797,102110.0,102100.0,0.81034782]
[1762605296674,0.2069797,102110.0,102100.0,0.56550782]
[1762605296973,0.2069797,102110.0,102100.0,0.81034782]
[1762605297275,0.25990889,102110.0,102100.0,0.81034782]
[1762605297868,0.25990889,102110.0,102100.0,0.56550782]
[1762605299076,0.22466741,102110.0,102100.0,0.56550782]
[1762605299278,0.25994336,102110.0,102100.0,0.56550782]
[1762605299977,0.25994336,102110.0,102100.0,0.71510782]
[1762605300276,0.22466741,102110.0,102100.0,0.71510782]
[1762605300976,0.22466741,102110.0,102100.0,0.95994782]
[1762605301566,0.22466741,102110.0,102100.0,0.71510782]
[1762605301771,0.22466741,102110.0,102100.0,0.95994782]
[1762605302278,0.21438673,102110.0,102100.0,0.71510782]
[1762605302474,0.21438673,102110.0,102100.0,0.95994782]
[1762605303377,0.16145754,102110.0,102100.0,0.95994782]
[1762605304173,0.26014673,102110.0,102100.0,0.71510782]
[1762605304376,0.22487741,102110.0,102100.0,0.71510782]
[1762605304582,0.26013575,102110.0,102100.0,0.71510782]
[1762605304781,0.22487741,102110.0,102100.0,0.71510782]
[1762605305878,0.22487741,102110.0,102100.0,0.56550782]
[1762605307278,0.26012857,102110.0,102100.0,0.56550782]
[1762605307478,0.22487741,102110.0,102100.0,0.56550782]
[1762605309183,0.26012695,102110.0,102100.0,0.56550782]
[1762605310183,0.20719776,102110.0,102100.0,0.56550782]
[1762605314388,0.20719776,102110.0,102100.0,0.3638]
[1762605314585,0.17194822,102110.0,102100.0,0.003]
[1762605314779,0.60327053,102110.0,102100.0,0.003]
[1762605316474,0.60327053,102110.0,102100.0,0.002]
[1762605316676,0.60327053,102110.0,102100.0,0.0989972]
[1762605316983,0.60427053,102110.0,102100.0,0.0989972]
[1762605317183,0.60627053,102110.0,102100.0,0.0979972]
[1762605322303,0.05957,102100.0,102090.0,0.56265644]
[1762605322498,0.49089231,102100.0,102090.0,0.00014702]
[1762605322694,0.59883477,102100.0,102090.0,0.09815382]
[1762605323290,0.59983477,102100.0,102090.0,0.09815382]
[1762605323594,0.59983477,102100.0,102090.0,0.20186464]
[1762605325306,0.52931246,102100.0,102090.0,0.20186464]
[1762605326407,0.58207796,102100.0,102090.0,0.20186464]
[1762605327212,0.22127796,102100.0,102090.0,0.20186464]
[1762605338211,0.22127796,102100.0,102090.0,0.56266464]
[1762605340211,0.23903477,102100.0,102090.0,0.56266464]
[1762605341915,0.16851246,102100.0,102090.0,0.66637546]
[1762605342120,0.22131675,102100.0,102090.0,0.66637546]
[1762605342520,0.22131675,102100.0,102090.0,0.45895382]
[1762605342730,0.22131675,102100.0,102090.0,0.66637546]
[1762605344420,0.23903477,102100.0,102090.0,0.6663637]
[1762605345121,0.2213935,102100.0,102090.0,0.6663637]
[1762605345523,0.25664325,102100.0,102090.0,0.6663637]
[1762605345722,0.20376221,102100.0,102090.0,0.6663637]
[1762605346924,0.20276221,102100.0,102090.0,0.6673637]
[1762605348128,0.20276221,102100.0,102090.0,0.6693637]
[1762605348921,0.25564325,102100.0,102090.0,0.6693637]
[1762605350320,0.20276221,102100.0,102090.0,0.6693637]
[1762605351527,0.20276221,102100.0,102090.0,1.0301637]
[1762605358333,0.25564325,102100.0,102090.0,1.0301637]
[1762605359835,0.20276221,102100.0,102090.0,1.0301637]
[1762605360334,0.25564325,102100.0,102090.0,1.0301637]
[1762605361737,0.25564325,102100.0,102090.0,1.0281637]
[1762605362238,0.25564325,102100.0,102090.0,1.0271637]
[1762605362438,0.25664325,102100.0,102090.0,1.0271637]
[1762605362638,0.20376221,102100.0,102090.0,1.0271637]
[1762605363138,0.16851246,102100.0,102090.0,1.15726205]
[1762605363333,0.12275246,102100.0,102090.0,1.40214205]
[1762605364532,0.12275246,102100.0,102090.0,1.15726205]
[1762605364739,0.12275246,102100.0,102090.0,1.40414205]
[1762605365136,0.06566104,102120.0,102110.0,0.0979876]
[1762605365336,0.01278,102120.0,102110.0,0.92329254]
[1762605365527,0.12581383,102120.0,102110.0,0.92329254]
[1762605365731,0.11103382,102120.0,102110.0,0.92329254]
[1762605365926,0.12644283,102140.0,102130.0,0.0979684]
[1762605366133,0.07356179,102140.0,102130.0,1.02697828]
[1762605366429,0.05708,102130.0,102120.0,0.56262996]
[1762605366633,0.05708,102130.0,102120.0,0.45892502]
[1762605366835,0.21977012,102130.0,102120.0,0.5683569]
[1762605367037,0.21893663,102130.0,102120.0,0.6663349]
[1762605368442,0.16605559,102130.0,102120.0,0.6663349]
[1762605370242,0.21893663,102130.0,102120.0,0.6663349]
[1762605370546,0.21893663,102130.0,102120.0,0.10385196]
[1762605370937,0.21893663,102130.0,102120.0,0.2075569]
[1762605371833,0.22093663,102130.0,102120.0,0.3055349]
[1762605372647,0.22193663,102130.0,102120.0,0.3055349]
[1762605373846,0.22193663,102130.0,102120.0,0.6663349]
[1762605374145,0.22193663,102130.0,102120.0,0.3055349]
[1762605374540,0.22193663,102130.0,102120.0,0.2075569]
[1762605375048,0.22193663,102130.0,102120.0,0.3055349]
[1762605380448,0.22193663,102130.0,102120.0,0.6663349]
[1762605381757,0.16905559,102130.0,102120.0,0.6663349]
[1762605382250,0.16905559,102130.0,102120.0,0.3055349]
[1762605383251,0.22193663,102130.0,102120.0,0.3055349]
[1762605383854,0.16905559,102130.0,102120.0,0.3055349]
[1762605384247,0.22193663,102130.0,102120.0,0.3055349]
[1762605384647,0.22193663,102130.0,102120.0,0.6663349]
[1762605384848,0.16905559,102130.0,102120.0,0.6663349]
[1762605385355,0.22193663,102130.0,102120.0,0.6663349]
[1762605390359,0.2395779,102130.0,102120.0,0.6663349]
[1762605391567,0.22189201,102130.0,102120.0,0.6663349]
[1762605392249,0.16905559,102130.0,102120.0,0.6663349]
[1762605392961,0.2395779,102130.0,102120.0,0.6663349]
[1762605393155,0.2395779,102130.0,102120.0,0.5683569]
[1762605393364,0.2395779,102130.0,102120.0,0.46465196]
[1762605393859,0.2395779,102130.0,102120.0,0.5683569]
[1762605394060,0.2395779,102130.0,102120.0,0.6663349]
[1762605396058,0.2395779,102130.0,102120.0,0.5683569]
[1762605396262,0.16905559,102130.0,102120.0,0.00014702]
[1762605396463,0.78070719,102130.0,102120.0,0.10385196]
[1762605396657,0.86888974,102130.0,102120.0,0.10385196]
[1762605396857,0.7651848,102130.0,102120.0,0.10385196]
[1762605397457,0.67700225,102130.0,102120.0,0.10385196]
[1762605398462,0.78070719,102130.0,102120.0,0.10385196]
[1762605398765,0.78070719,102130.0,102120.0,0.00014702]
[1762605399151,0.86888974,102130.0,102120.0,0.00014702]
[1762605399356,0.86888974,102130.0,102120.0,0.10385196]
[1762605399553,0.7651848,102130.0,102120.0,0.10385196]
[1762605400267,0.74751099,102130.0,102120.0,0.10385196]
[1762605400468,0.05614,102120.0,102110.0,0.3608]
[1762605400769,0.05614,102110.0,102100.0,0.47920494]
[1762605400967,0.10902364,102110.0,102100.0,0.58290988]
[1762605401169,0.2201186,102110.0,102100.0,0.58290988]
[1762605401371,0.2201186,102110.0,102100.0,0.47920494]
[1762605401570,0.2201186,102110.0,102100.0,0.21640214]
[1762605401866,0.05614,102100.0,102090.0,0.00749702]
[1762605402169,0.35812343,102100.0,102090.0,0.20920876]
[1762605402372,0.35812343,102100.0,102090.0,0.21655876]
[1762605402564,0.3052595,102100.0,102090.0,0.20920876]
[1762605402766,0.37576824,102100.0,102090.0,0.20920876]
[1762605403269,0.35805997,102100.0,102090.0,0.21655876]
[1762605403969,0.3072595,102100.0,102090.0,0.21655876]
[1762605404174,0.36005954,102100.0,102090.0,0.21655876]
[1762605404470,0.36105954,102100.0,102090.0,0.21655876]
[1762605404970,0.36105954,102100.0,102090.0,0.57735876]
[1762605405464,0.36105954,102100.0,102090.0,0.6810637]
[1762605405665,0.36105954,102100.0,102090.0,0.57735876]
[1762605406266,0.3962154,102100.0,102090.0,0.57735876]
[1762605406474,0.3962154,102100.0,102090.0,0.57737723]
[1762605410172,0.34341536,102100.0,102090.0,0.68110064]
[1762605410372,0.3082595,102100.0,102090.0,0.68110064]
[1762605410776,0.14028468,102100.0,102090.0,0.68110064]
[1762605411274,0.12759468,102100.0,102090.0,0.68110064]
[1762605412576,0.10550468,102100.0,102090.0,0.68110064]
[1762605419679,0.12871468,102100.0,102090.0,0.68110064]
[1762605420383,0.15173468,102100.0,102090.0,0.68110064]
[1762605421283,0.16471468,102100.0,102090.0,0.68110064]
[1762605422286,0.10550468,102100.0,102090.0,0.68110064]
[1762605423589,0.10450468,102100.0,102090.0,0.68110064]
[1762605423787,0.10450468,102100.0,102090.0,0.68310064]
[1762605424387,0.10250468,102100.0,102090.0,0.68510064]
[1762605424991,0.14873468,102100.0,102090.0,0.68510064]
[1762605425191,0.16171468,102100.0,102090.0,0.68510064]
[1762605427984,0.19687054,102100.0,102090.0,0.68510064]
[1762605428894,0.19687054,102100.0,102090.0,0.68310064]
[1762605429193,0.19687054,102100.0,102090.0,0.68510064]
[1762605429392,0.13766054,102100.0,102090.0,0.68510064]
[1762605429607,0.10250468,102100.0,102090.0,0.68510064]
[1762605430109,0.10250468,102100.0,102090.0,0.8610687]
[1762605430299,0.03515586,102110.0,102100.0,0.1126972]
[1762605430499,0.14702292,102120.0,102110.0,0.1126876]
[1762605430701,0.14702292,102120.0,102110.0,0.57721101]
[1762605430893,0.2575546,102120.0,102110.0,0.57721101]
[1762605431587,0.22239874,102120.0,102110.0,0.57721101]
[1762605431896,0.22439874,102120.0,102110.0,0.57721101]
[1762605432097,0.22439874,102120.0,102110.0,0.47922341]
[1762605432490,0.22539874,102120.0,102110.0,0.57721101]
[1762605438698,0.20237874,102120.0,102110.0,0.57721101]
[1762605438895,0.23761951,102120.0,102110.0,0.57721101]
[1762605439095,0.26063951,102120.0,102110.0,0.57721101]
[1762605440203,0.22539874,102120.0,102110.0,0.57721101]
[1762605440405,0.22546982,102120.0,102110.0,0.57721101]
[1762605440902,0.24310744,102120.0,102110.0,0.57721101]
[1762605441504,0.24210744,102120.0,102110.0,0.57721101]
[1762605442906,0.24110744,102120.0,102110.0,0.57721101]
[1762605449605,0.22347343,102120.0,102110.0,0.57721101]
[1762605449801,0.18776343,102120.0,102110.0,0.57721101]
[1762605450196,0.21060343,102120.0,102110.0,0.57721101]
[1762605450402,0.22430343,102120.0,102110.0,0.57721101]
[1762605452625,0.22430343,102120.0,102110.0,0.47922341]
[1762605452802,0.22430343,102120.0,102110.0,0.57721101]
[1762605452997,0.22430567,102120.0,102110.0,0.57721101]
[1762605459010,0.18776567,102120.0,102110.0,0.57721101]
[1762605459206,0.19981644,102120.0,102110.0,0.68093442]
[1762605460410,0.22082644,102120.0,102110.0,0.68093442]
[1762605460810,0.19981644,102120.0,102110.0,0.68093442]
[1762605461007,0.19981644,102120.0,102110.0,0.57721101]
[1762605462408,0.19981644,102120.0,102110.0,0.68093442]
[1762605463115,0.14693947,102120.0,102110.0,0.83053442]
[1762605463713,0.14693947,102120.0,102110.0,1.07537442]
[1762605464109,0.14693947,102120.0,102110.0,0.83053442]
[1762605464309,0.14693947,102120.0,102110.0,0.85690248]
[1762605464511,0.14693947,102120.0,102110.0,1.07537442]
[1762605466008,0.14693947,102120.0,102110.0,0.83053442]
[1762605467417,0.1116787,102120.0,102110.0,0.83053442]
[1762605467916,0.20343947,102120.0,102110.0,0.83053442]
[1762605468416,0.20343947,102120.0,102110.0,0.83040084]
[1762605469017,0.16884947,102120.0,102110.0,0.83040084]
[1762605469211,0.1116787,102120.0,102110.0,1.1016089]
[1762605469810,0.1116787,102120.0,102110.0,1.20526552]
[1762605470010,0.1116787,102120.0,102110.0,0.8567689]
[1762605472310,0.1116787,102120.0,102110.0,1.1016089]
[1762605472714,0.1116787,102120.0,102110.0,0.8567689]
[1762605472914,0.1116787,102120.0,102110.0,1.1016089]
[1762605473324,0.1116787,102120.0,102110.0,1.20526552]
[1762605473526,0.00114702,102120.0,102110.0,1.20526552]
[1762605474121,0.00114702,102120.0,102110.0,0.96042552]
[1762605474420,0.00114702,102120.0,102110.0,1.20526552]
[1762605476026,0.04547702,102120.0,102110.0,0.8567689]
[1762605476725,0.04547702,102120.0,102110.0,0.7071689]
[1762605477025,0.02444702,102120.0,102110.0,0.7071689]
[1762605478524,0.00114702,102120.0,102110.0,1.02929746]
[1762605478921,0.00114702,102120.0,102110.0,0.92564084]
[1762605479119,0.00114702,102120.0,102110.0,0.68080084]
[1762605479319,0.00114702,102120.0,102110.0,0.92564084]
[1762605479720,0.00114702,102120.0,102110.0,0.68080084]
[1762605479927,0.00114702,102120.0,102110.0,0.92564084]
[1762605480322,0.08073779,102120.0,102110.0,0.68080084]
[1762605480522,0.05970779,102120.0,102110.0,0.68080084]
[1762605481023,0.09427779,102120.0,102110.0,0.68080084]
[1762605481226,0.20268651,102120.0,102110.0,0.68080084]
[1762605482124,0.25556348,102120.0,102110.0,0.4734876]
[1762605482327,0.25556348,102120.0,102110.0,0.57714422]
[1762605482729,0.20268651,102120.0,102110.0,0.57714422]
[1762605483032,0.25556348,102120.0,102110.0,0.57714422]
[1762605483733,0.25556348,102120.0,102110.0,0.68080084]
[1762605484834,0.22030271,102120.0,102110.0,0.68080084]
[1762605490524,0.25555634,102120.0,102110.0,0.68080084]
[1762605492839,0.22030271,102120.0,102110.0,0.68080084]
[1762605493226,0.25555199,102120.0,102110.0,0.68080084]
[1762605493430,0.25555199,102120.0,102110.0,0.57714422]
[1762605493629,0.22030271,102120.0,102110.0,0.57714422]
[1762605498237,0.17597271,102120.0,102110.0,0.10365662]
[1762605498442,0.7277212,102120.0,102110.0,0.10365662]
[1762605498641,0.74535297,102120.0,102110.0,0.10365662]
[1762605498847,0.05787,102110.0,102100.0,0.57714602]
[1762605499135,0.25785819,102110.0,102100.0,0.68080264]
[1762605500141,0.25785819,102110.0,102100.0,0.68280264]
[1762605502243,0.22262135,102110.0,102100.0,0.68280264]
[1762605502541,0.25785196,102110.0,102100.0,0.68280264]
[1762605508545,0.25785196,102110.0,102100.0,0.78645926]
[1762605508739,0.1471267,102110.0,102100.0,0.78645926]
[1762605509439,0.11189609,102110.0,102100.0,0.78645926]
[1762605509638,0.11189609,102110.0,102100.0,0.81280504]
[1762605511144,0.11189609,102110.0,102100.0,1.17360504]
[1762605511750,0.12409289,102120.0,102110.0,0.1126876]
[1762605512050,0.22646802,102120.0,102110.0,0.68080084]
[1762605512848,0.24977802,102120.0,102110.0,0.68080084]
[1762605513841,0.22746802,102120.0,102110.0,0.68180084]
[1762605514043,0.13875276,102120.0,102110.0,0.68180084]
[1762605514643,0.13775276,102120.0,102110.0,0.68180084]
[1762605514844,0.13775276,102120.0,102110.0,0.68280084]
[1762605515951,0.18238276,102120.0,102110.0,0.68280084]
[1762605518050,0.13775276,102120.0,102110.0,0.68280084]
[1762605518653,0.16007276,102120.0,102110.0,0.68280084]
[1762605521858,0.18238276,102120.0,102110.0,0.68280084]
[1762605522244,0.14715215,102120.0,102110.0,0.68280084]
[1762605523459,0.12484215,102120.0,102110.0,0.68280084]
[1762605523856,0.14623215,102120.0,102110.0,0.68280084]
[1762605524057,0.15910215,102120.0,102110.0,0.68280084]
[1762605527665,0.13771215,102120.0,102110.0,0.68280084]
[1762605527858,0.10252215,102120.0,102110.0,0.81280324]
[1762605528754,0.00014702,102120.0,102110.0,0.81280324]
[1762605530466,0.02154702,102120.0,102110.0,0.68277636]
[1762605530667,0.04293702,102120.0,102110.0,0.68277636]
[1762605531860,0.00014702,102120.0,102110.0,0.68277636]
[1762605532162,0.02154702,102120.0,102110.0,0.68277636]
[1762605533461,0.00014702,102120.0,102110.0,0.68277636]
[1762605534367,0.00014702,102120.0,102110.0,0.83237636]
[1762605535655,0.02199702,102120.0,102110.0,0.83237636]
[1762605536360,0.00014702,102120.0,102110.0,0.85872706]
[1762605537562,0.00014702,102120.0,102110.0,0.70912706]
[1762605538470,0.08849954,102130.0,102120.0,0.02205]
[1762605538666,0.08849954,102130.0,102120.0,0.68811676]
[1762605538866,0.1926983,102130.0,102120.0,0.68811676]
[1762605539066,0.2145483,102130.0,102120.0,0.68811676]
[1762605539261,0.16127937,102130.0,102120.0,0.68811676]
[1762605539463,0.18435937,102130.0,102120.0,0.68811676]
[1762605540071,0.18535937,102130.0,102120.0,0.68811676]
[1762605540365,0.19930937,102130.0,102120.0,0.70711746]
[1762605541464,0.19930937,102130.0,102120.0,0.68076676]
[1762605542471,0.25216463,102130.0,102120.0,0.68076676]
[1762605546068,0.21693402,102130.0,102120.0,0.56977238]
[1762605546369,0.21693402,102130.0,102120.0,0.56242238]
[1762605546571,0.2345875,102130.0,102120.0,0.56242238]
[1762605546758,0.2345875,102130.0,102120.0,0.56977238]
[1762605546961,0.2345875,102130.0,102120.0,0.57712238]
[1762605547877,0.21695753,102130.0,102120.0,0.68076676]
[1762605548270,0.25220807,102130.0,102120.0,0.68076676]
[1762605548669,0.21695753,102130.0,102120.0,0.56242238]
[1762605549072,0.2345875,102130.0,102120.0,0.46444438]
[1762605549277,0.28811288,102130.0,102120.0,0.56242238]
[1762605550576,0.28811288,102130.0,102120.0,0.56977238]
[1762605551479,0.28811288,102130.0,102120.0,0.57712238]
[1762605551976,0.28811288,102130.0,102120.0,0.458778]
[1762605552170,0.28811288,102130.0,102120.0,0.56242238]
[1762605552372,0.28811288,102130.0,102120.0,0.57712238]
[1762605559178,0.21760414,102130.0,102120.0,0.57712238]
[1762605559772,0.21760414,102130.0,102120.0,0.473478]
[1762605559976,0.21760414,102130.0,102120.0,0.57712238]
[1762605560382,0.28811288,102130.0,102120.0,0.57712238]
[1762605564485,0.28811288,102130.0,102120.0,0.473478]